bitfinex-derivatives/quotes_ETHF0:USTF0_20260213
["timestamp","ask_amount","ask_price","bid_price","bid_amount"]
[1770970733000,1.31881697,1938.8,1938.3,1.3126391]
[1770970734405,1.31881697,1938.9,1938.5,1.3126391]
[1770970734600,1.31881697,1939.0,1938.7,1.3126391]
[1770970734802,1.31881697,1939.0,1938.7,1.31646513]
[1770970735302,1.31881697,1939.0,1938.7,0.00382603]
[1770970735706,1.31881697,1938.7,1938.2,1.3126391]
[1770970736006,1.31881697,1938.7,1938.1,2.77366083]
[1770970736410,1.31881697,1938.4,1937.9,1.3126391]
[1770970736609,1.31881697,1938.4,1937.9,1.31793937]
[1770970736904,1.31881697,1938.4,1937.9,0.00530027]
[1770970737104,1.31881697,1938.2,1937.6,2.77366083]
[1770970737605,1.31881697,1938.2,1937.7,2.77366083]
[1770970737810,1.31881697,1938.4,1937.9,1.3126391]
[1770970738205,1.31881697,1938.4,1937.9,1.31763664]
[1770970739310,1.31881697,1938.4,1938.0,1.3126391]
[1770970739811,1.31881697,1938.4,1937.9,2.77865837]
[1770970740009,1.31881697,1938.4,1937.9,1.31763664]
[1770970740309,1.31881697,1938.6,1938.2,1.3126391]
[1770970740808,1.31881697,1938.6,1938.1,1.46102173]
[1770970740809,1.31881697,1938.6,1938.1,2.74839829]
[1770970741008,1.31881697,1938.6,1938.1,1.28737656]
[1770970742206,1.31881697,1938.6,1938.3,1.28737656]
[1770970742413,1.28758893,1938.8,1938.3,1.28737656]
[1770970743313,1.28758893,1938.9,1938.3,1.28737656]
[1770970744109,1.28758893,1938.9,1938.1,1.54553656]
[1770970747514,1.28758893,1938.7,1938.1,1.54553656]
[1770970749511,5.06542743,1938.6,1937.9,1.2923741]
[1770970749710,1.28758893,1938.5,1937.9,1.2923741]
[1770970750614,1.28758893,1938.5,1937.9,0.00499754]
[1770970750914,1.28758893,1938.3,1937.6,1.28737656]
[1770970751703,1.28758893,1938.3,1937.6,1.29135016]
[1770970754525,1.28758893,1938.0,1937.2,1.28737656]
[1770970755014,1.28758893,1938.0,1937.2,1.54565656]
[1770970755617,1.28758893,1938.0,1937.2,1.55167237]
[1770970756821,1.28758893,1938.2,1937.4,1.28737656]
[1770970757614,1.28758893,1938.5,1937.4,1.28737656]
[1770970757815,1.28758893,1938.3,1937.4,1.28737656]
[1770970759822,1.28758893,1938.3,1937.6,1.28737656]
[1770970760924,1.28758893,1938.5,1937.8,1.28737656]
[1770970762321,1.28758893,1938.5,1937.7,1.54560656]
[1770970762523,1.28758893,1938.5,1937.7,1.28737656]
[1770970765916,1.28758893,1938.7,1937.7,1.28737656]
[1770970766216,1.28758893,1938.5,1937.7,1.28737656]
[1770970769025,1.28758893,1938.5,1937.6,0.25823]
[1770970769026,1.28758893,1938.4,1937.8,2.74914842]
[1770970769518,1.28758893,1938.4,1937.9,1.28737656]
[1770970770623,1.28758893,1938.4,1937.9,2.74914842]
[1770970770829,1.06284504,1938.6,1938.1,1.03988484]
[1770970771421,1.06284504,1938.6,1937.6,1.72000186]
[1770970771422,1.06284504,1938.4,1937.8,2.5016567]
[1770970771625,1.06284504,1938.4,1937.9,1.03988484]
[1770970772829,1.06284504,1938.4,1938.0,1.03988484]
[1770970773124,1.06284504,1938.5,1938.0,1.03988484]
[1770970777426,1.02276966,1938.7,1938.4,1.03590297]
[1770970777629,50.40785565,1939.0,1938.4,1.03590297]
[1770970777828,1.02276966,1938.8,1938.4,2.49767483]
[1770970778226,1.02276966,1939.0,1938.5,1.03590297]
[1770970778427,1.02677489,1939.2,1938.7,1.03590297]
[1770970778626,1.02677489,1939.2,1938.8,1.03590297]
[1770970779132,1.02276966,1939.0,1938.7,1.04259359]
[1770970779326,0.2834642,1939.1,1938.7,1.04259359]
[1770970781330,0.00400523,1939.2,1938.8,1.03590297]
[1770970781534,0.3084479,1939.2,1938.8,1.03590297]
[1770970782534,0.00400523,1939.2,1938.9,1.03590297]
[1770970782734,0.29497614,1939.5,1938.9,1.03590297]
[1770970783036,5.39492,1939.4,1938.9,1.03590297]
[1770970783237,0.28579802,1939.4,1938.9,1.03590297]
[1770970783436,0.28579802,1939.4,1939.0,1.03590297]
[1770970783638,0.29134421,1939.4,1939.0,1.03590297]
[1770970783837,0.29134421,1939.4,1939.0,0.53590297]
[1770970784537,0.76806331,1939.3,1939.0,0.53590297]
[1770970785133,0.7802195,1939.3,1938.7,1.46846248]
[1770970785438,0.7802195,1939.1,1938.7,1.04259359]
[1770970787340,0.76607237,1939.3,1938.8,1.03590297]
[1770970787534,0.00554619,1939.4,1939.0,1.03590297]
[1770970787735,0.76607237,1939.5,1939.1,2.49767483]
[1770970787935,0.76607237,1939.5,1939.1,1.03590297]
[1770970788732,0.77034154,1939.5,1939.1,1.03590297]
[1770970789234,0.00426917,1939.5,1939.1,1.03590297]
[1770970789640,0.74872487,1939.5,1939.1,1.03590297]
[1770970792645,0.00426917,1939.5,1939.1,1.03590297]
[1770970792944,0.7175385,1939.9,1939.1,1.03590297]
[1770970793337,0.7175385,1939.9,1938.7,0.00669062]
[1770970793540,0.7175385,1939.9,1938.8,1.03590297]
[1770970794046,0.72267089,1939.9,1938.8,1.03590297]
[1770970795635,0.67779525,1939.7,1938.8,1.03590297]
[1770970797142,0.67621234,1939.3,1938.7,0.00669062]
[1770970797542,0.67621234,1939.3,1938.7,1.04259359]
[1770970798550,0.91735087,1939.4,1938.7,1.04259359]
[1770970798851,0.65777854,1939.3,1938.7,1.04259359]
[1770970799047,3.0710739,1939.6,1938.7,1.04259359]
[1770970799048,2.01818603,1939.6,1938.7,1.04259359]
[1770970799257,1.02276966,1940.4,1939.3,1.03590297]
[1770970799549,1.02276966,1940.2,1939.3,1.03590297]
[1770970799752,1.02276966,1940.1,1939.3,1.03590297]
[1770970800345,1.02833288,1940.1,1939.3,1.03590297]
[1770970801356,1.12941576,1940.0,1938.8,1.09892485]
[1770970801750,1.12941576,1939.8,1938.8,1.09892485]
[1770970802352,1.12941576,1939.7,1938.8,1.09892485]
[1770970803846,0.00556322,1940.1,1938.8,1.09892485]
[1770970803847,1.12941576,1940.0,1938.8,1.09892485]
[1770970805446,1.12941576,1939.8,1938.8,1.09892485]
[1770970806059,0.25793,1940.0,1938.8,1.09892485]
[1770970806060,1.12941576,1939.5,1938.8,1.09892485]
[1770970806458,1.12941576,1939.4,1938.8,1.09892485]
[1770970806858,1.12941576,1939.9,1938.8,1.09892485]
[1770970807156,1.12941576,1939.7,1938.8,1.09892485]
[1770970810160,1.12941576,1939.6,1938.8,1.09892485]
[1770970810661,1.12941576,1939.5,1938.8,1.09892485]
[1770970811056,1.12941576,1939.3,1938.8,1.09892485]
[1770970814067,1.12941576,1939.1,1938.7,0.00669062]
[1770970814265,1.12941576,1939.1,1938.1,1.09892485]
[1770970815065,1.12941576,1939.5,1938.2,1.35708485]
[1770970815260,1.12941576,1939.3,1938.2,1.35708485]
[1770970816156,1.12941576,1939.4,1938.2,1.35708485]
[1770970816364,1.12941576,1939.4,1938.1,9.99331394]
[1770970816365,1.12941576,1939.5,1938.6,1.09892485]
[1770970817160,1.12941576,1939.3,1938.6,1.09892485]
[1770970819066,1.64541083,1939.3,1938.6,1.09892485]
[1770970819365,1.12941576,1939.2,1938.6,1.09892485]
[1770970821058,1.64541083,1939.2,1938.6,1.09892485]
[1770970821260,1.12941576,1939.1,1938.6,1.09892485]
[1770970821861,1.12941576,1939.0,1938.6,1.09892485]
[1770970822368,1.12941576,1938.9,1938.2,1.09892485]
[1770970822864,1.64541083,1938.8,1938.2,1.09892485]
[1770970823066,1.12941576,1938.8,1938.2,1.09892485]
[1770970823458,0.51599507,1938.7,1938.2,1.09892485]
[1770970823766,0.52044856,1938.7,1938.2,1.09892485]
[1770970824063,1.12941576,1939.1,1938.2,1.09892485]
[1770970825265,1.13311658,1939.1,1938.2,1.09892485]
[1770970832662,1.13311658,1939.1,1938.4,1.06999885]
[1770970833373,0.00370082,1939.1,1938.4,1.06999885]
[1770970834972,0.00370082,1939.1,1938.6,1.01646915]
[1770970835671,1.04750566,1939.6,1938.8,1.01646915]
[1770970836664,1.05113542,1939.6,1938.8,1.01646915]
[1770970838268,1.05113542,1939.6,1938.7,1.01646915]
[1770970838473,1.04750566,1939.4,1938.7,1.01646915]
[1770970841963,0.00362976,1939.6,1938.7,1.01646915]
[1770970842166,1.04750566,1939.5,1938.7,1.01646915]
[1770970845270,1.04750566,1939.3,1938.7,1.01646915]
[1770970846077,46.07832115,1939.6,1938.9,1.01646915]
[1770970846078,1.04750566,1939.5,1938.9,1.01646915]
[1770970846473,1.04750566,1939.5,1938.7,1.01646915]
[1770970854581,0.25803,1939.2,1938.3,8.70470233]
[1770970854781,4.8672276,1939.1,1938.3,1.01646915]
[1770970854981,1.04750566,1939.0,1938.3,1.01646915]
[1770970856292,1.04750566,1939.0,1938.1,1.02266236]
[1770970857887,1.04750566,1938.8,1938.1,0.00619321]
[1770970858391,1.04750566,1938.6,1937.8,1.01646915]
[1770970859487,1.04750566,1938.6,1937.8,1.02083434]
[1770970861493,1.04750566,1938.6,1937.8,0.00436519]
[1770970862690,1.04750566,1938.6,1937.8,0.93708576]
[1770970862994,1.04750566,1938.6,1937.9,0.93272057]
[1770970863389,1.04750566,1938.6,1937.8,0.00436519]
[1770970863788,1.04750566,1938.6,1937.8,0.93708576]
[1770970864789,1.04750566,1938.6,1937.9,0.93272057]
[1770970865485,0.90192881,1939.0,1937.9,0.93272057]
[1770970866092,0.90192881,1939.0,1938.1,0.93272057]
[1770970872203,0.90192881,1939.2,1938.5,0.93272057]
[1770970872700,49.1481033,1939.6,1938.5,0.93272057]
[1770970872896,0.90192881,1939.5,1938.5,0.93272057]
[1770970873200,0.90192881,1939.5,1938.7,0.93272057]
[1770970873594,3.97171096,1940.0,1939.0,0.93272057]
[1770970873801,0.90192881,1939.9,1939.3,0.93272057]
[1770970874803,0.90786055,1939.9,1939.3,0.93703752]
[1770970875505,0.00593174,1939.9,1939.3,0.93703752]
[1770970875700,0.90192881,1940.2,1939.6,0.93272057]
[1770970875903,0.90192881,1940.4,1939.6,0.93272057]
[1770970876604,0.90598807,1940.4,1939.6,0.93272057]
[1770970879505,0.00405926,1940.4,1939.8,0.93272057]
[1770970880306,0.00405926,1940.4,1939.5,0.25798]
[1770970880307,0.90192881,1940.7,1940.0,0.93272057]
[1770970880808,0.90192881,1940.9,1940.2,0.93272057]
[1770970881504,0.9071785,1940.9,1940.2,0.93272057]
[1770970882007,0.9071785,1940.9,1940.0,0.93272057]
[1770970883202,0.00524969,1940.9,1940.3,0.93272057]
[1770970883707,0.00524969,1940.9,1940.2,2.30115563]
[1770970883708,0.90192881,1941.2,1940.5,0.93272057]
[1770970884509,0.90192881,1941.6,1940.8,0.93272057]
[1770970884808,0.9071261,1941.6,1940.8,0.00407786]
[1770970885307,0.9071261,1941.6,1940.8,0.93679843]
[1770970887109,0.9071261,1941.6,1940.8,0.00407786]
[1770970887306,3.20828173,1941.6,1940.8,0.00407786]
[1770970887510,0.90192881,1941.5,1940.8,0.00407786]
[1770970888409,0.90192881,1941.5,1940.8,0.93679843]
[1770970890308,0.00519729,1941.6,1941.0,0.93272057]
[1770970890610,0.79562215,1941.6,1941.0,0.93272057]
[1770970891617,0.00519729,1941.6,1941.0,0.93272057]
[1770970892515,0.79042486,1942.1,1941.1,0.82943092]
[1770970893017,0.79042486,1941.9,1940.9,0.82943092]
[1770970893613,0.79606656,1941.9,1940.9,0.82943092]
[1770970894313,0.79606656,1941.9,1941.1,0.82943092]
[1770970895916,0.79538807,1941.8,1940.9,0.77015491]
[1770970897212,0.80102977,1941.9,1941.0,0.77015491]
[1770970897411,0.80102977,1941.9,1941.2,0.77015491]
[1770970900013,0.0056417,1941.9,1941.2,0.77015491]
[1770970900716,0.0056417,1941.9,1941.4,0.77015491]
[1770970901016,0.79538807,1942.1,1941.4,0.77015491]
[1770970901311,0.79538807,1942.4,1941.7,0.77015491]
[1770970901505,0.79538807,1942.4,1941.5,0.77015491]
[1770970901912,0.80141883,1942.4,1941.5,0.77015491]
[1770970903316,0.00603076,1942.4,1941.7,3.07131054]
[1770970903614,0.00603076,1942.4,1941.8,0.77015491]
[1770970904012,0.79538807,1942.6,1941.8,0.77015491]
[1770970904215,0.79538807,1943.0,1942.0,2.30115563]
[1770970904421,0.79538807,1943.0,1942.1,0.77015491]
[1770970904817,0.79538807,1943.2,1942.1,0.77015491]
[1770970905022,0.8013834,1943.2,1942.5,0.77015491]
[1770970905222,0.8013834,1943.2,1942.5,0.77540741]
[1770970906617,0.00599533,1943.2,1942.5,0.77540741]
[1770970907821,0.79538807,1943.6,1942.8,0.77015491]
[1770970908722,0.79957056,1943.6,1942.8,0.77015491]
[1770970909423,0.00418249,1943.6,1942.9,0.77015491]
[1770970909821,0.79957056,1943.6,1942.9,0.77015491]
[1770970912621,0.00418249,1943.6,1942.9,0.77015491]
[1770970912832,0.79957056,1943.6,1942.9,0.77015491]
[1770970914030,0.00418249,1943.6,1942.9,0.77015491]
[1770970916125,0.79957056,1943.6,1942.9,0.77015491]
[1770970921530,0.00418249,1943.6,1942.9,0.77015491]
[1770970921728,0.7392953,1943.6,1942.9,0.77015491]
[1770970922433,0.7392953,1943.6,1942.5,0.75796798]
[1770970923034,0.7392953,1943.6,1942.6,0.75271548]
[1770970923833,0.7392953,1943.6,1942.8,0.75271548]
[1770970924728,0.00418249,1943.6,1943.0,0.75271548]
[1770970924937,0.73511281,1943.9,1943.2,0.75271548]
[1770970925131,3.065807,1944.5,1943.2,0.75271548]
[1770970925334,0.73511281,1944.3,1943.2,0.75271548]
[1770970925928,0.73890357,1944.3,1943.2,0.75271548]
[1770970926839,0.73890357,1944.3,1943.4,0.75271548]
[1770970928736,0.73511281,1944.2,1943.2,0.75271548]
[1770970929348,0.25738,1944.1,1943.0,0.75271548]
[1770970929533,0.73511281,1944.0,1943.0,0.75271548]
[1770970930242,0.73511281,1943.8,1943.0,0.75271548]
[1770970931140,0.73511281,1943.8,1942.8,0.75271548]
[1770970931441,0.73511281,1943.6,1942.8,0.75271548]
[1770970933244,46.07469139,1943.9,1942.8,0.75271548]
[1770970933245,0.73511281,1943.4,1942.8,0.75271548]
[1770970933743,0.73511281,1943.4,1942.6,0.75271548]
[1770970934840,0.73511281,1943.4,1942.5,0.0052525]
[1770970934841,0.73511281,1943.2,1942.5,0.0052525]
[1770970935239,0.73511281,1943.2,1942.5,0.75796798]
[1770970935437,3.80720254,1943.4,1942.5,0.75796798]
[1770970935637,0.73511281,1943.2,1942.5,0.75796798]
[1770970936238,0.73511281,1943.0,1942.5,0.0052525]
[1770970936640,0.73511281,1942.8,1942.1,0.75271548]
[1770970937543,0.74115059,1942.8,1942.1,0.75649411]
[1770970938637,0.00603778,1942.8,1942.1,0.75649411]
[1770970939042,0.00603778,1942.8,1942.3,0.75271548]
[1770970939346,0.73511281,1943.1,1942.3,0.75271548]
[1770970940343,0.74070323,1943.1,1942.3,0.75271548]
[1770970941753,0.74070323,1943.1,1942.1,0.75649411]
[1770970942052,0.73511281,1942.9,1942.3,0.75271548]
[1770970944054,0.00559042,1943.1,1942.3,0.75271548]
[1770970944055,0.74070323,1943.1,1942.3,0.75271548]
[1770970945447,0.99822323,1943.1,1942.1,0.75649411]
[1770970945650,0.73511281,1942.9,1942.1,0.75649411]
[1770970948262,3.33520015,1943.1,1942.1,0.00377863]
[1770970948263,0.25755,1942.8,1942.1,0.00377863]
[1770970948449,0.73511281,1942.7,1942.1,0.00377863]
[1770970949353,0.73511281,1942.7,1942.1,0.75649411]
[1770970951357,0.73511281,1942.7,1942.1,0.00377863]
[1770970954956,0.73511281,1942.7,1941.7,0.62559027]
[1770970955358,0.73511281,1942.7,1941.8,0.62559027]
[1770970955956,0.73511281,1942.7,1941.8,0.63185686]
[1770970958267,0.63619117,1942.5,1941.8,0.00626659]
[1770970959455,0.63619117,1942.1,1941.0,16.91346429]
[1770970959659,0.63619117,1942.1,1941.1,0.62559027]
[1770970959860,0.63619117,1941.9,1941.1,0.62559027]
[1770970960564,0.63619117,1941.9,1941.1,0.63126483]
[1770970966073,0.63619117,1941.8,1941.1,0.00567456]
[1770970966878,0.63619117,1941.8,1941.1,0.63126483]
[1770970968773,0.63619117,1941.8,1941.1,0.00567456]
[1770970969178,0.63619117,1941.8,1941.1,0.63126483]
[1770970970369,0.63619117,1941.8,1941.1,0.00567456]
[1770970971378,0.63619117,1941.8,1941.1,0.63126483]
[1770970978179,0.63619117,1941.8,1941.1,0.00567456]
[1770970978386,0.63619117,1941.6,1940.9,0.62559027]
[1770970979486,0.64003412,1941.6,1940.9,0.63042908]
[1770970979881,0.00384295,1941.6,1941.1,0.62559027]
[1770970980583,0.62379303,1941.6,1941.1,0.62559027]
[1770970980881,0.61995008,1942.0,1941.1,0.62559027]
[1770970981080,0.61995008,1942.0,1941.3,0.61005082]
[1770970981484,3.69203981,1942.4,1941.6,0.61005082]
[1770970981682,0.61995008,1942.4,1941.6,0.61005082]
[1770970981985,0.62494203,1942.4,1941.6,0.61005082]
[1770970986583,0.61995008,1942.2,1941.6,0.61005082]
[1770970987784,0.00499195,1942.4,1941.6,0.61005082]
[1770970987989,4.87334189,1942.3,1941.6,0.61005082]
[1770970988188,0.61995008,1942.3,1941.6,0.61005082]
[1770970988589,0.61995008,1942.3,1941.7,2.29432498]
[1770970988786,0.61995008,1942.3,1941.8,0.61005082]
[1770970989682,0.61995008,1942.3,1941.5,0.61005082]
[1770970992587,0.61995008,1942.1,1941.1,0.61005082]
[1770970992889,0.61995008,1942.1,1941.2,0.61005082]
[1770971003498,0.61995008,1942.1,1941.4,0.61005082]
[1770971004292,0.61995008,1942.1,1941.3,0.61005082]
[1770971004491,0.61995008,1941.9,1941.3,0.61005082]
[1770971007307,0.61995008,1941.9,1941.0,0.61005082]
[1770971007510,0.61995008,1941.9,1941.2,0.61005082]
[1770971008506,0.61995008,1942.1,1941.4,0.61005082]
[1770971013208,0.61995008,1942.1,1941.2,0.5728289]
[1770971013410,0.5684095,1941.9,1941.2,0.5728289]
[1770971017117,0.56343842,1942.0,1941.2,0.5728289]
[1770971017319,0.56343842,1942.2,1941.5,0.56838564]
[1770971017618,5.44757082,1942.1,1941.5,0.56838564]
[1770971017814,0.56343842,1942.1,1941.5,0.56838564]
[1770971018514,0.56343842,1941.9,1941.2,0.56838564]
[1770971018914,0.56343842,1941.9,1941.4,0.56838564]
[1770971019817,0.56343842,1942.1,1941.8,0.56838564]
[1770971022525,0.56343842,1942.2,1941.9,0.56838564]
[1770971022816,3.07981191,1942.3,1941.9,0.56838564]
[1770971022817,0.56343842,1942.3,1941.9,2.02483066]
[1770971023009,0.56343842,1942.3,1941.9,0.56838564]
[1770971027025,0.56343842,1942.3,1942.0,0.56838564]
[1770971027418,0.56843037,1942.4,1942.0,0.56838564]
[1770971029222,0.56843037,1942.4,1942.1,2.02483066]
[1770971029524,0.19692888,1942.5,1942.1,2.02483066]
[1770971030329,0.20097858,1942.5,1942.1,2.02483066]
[1770971030627,0.20097858,1942.5,1942.2,0.56838564]
[1770971030825,3.08423549,1942.8,1942.4,0.60169942]
[1770971031120,4.87859404,1942.7,1942.4,0.10169942]
[1770971031321,0.00108091,1942.8,1942.4,0.10169942]
[1770971031716,0.00687479,1942.8,1942.5,0.56838564]
[1770971031921,0.50099715,1943.1,1942.7,0.56838564]
[1770971032116,0.50099715,1943.1,1942.8,0.56838564]
[1770971032321,0.50099715,1943.1,1942.7,2.02483066]
[1770971032523,0.50099715,1943.1,1942.7,0.56838564]
[1770971033025,1.96344245,1943.1,1942.4,1.46149554]
[1770971033219,0.50253909,1943.0,1942.5,0.56838564]
[1770971034122,0.50244455,1942.7,1942.4,0.00505052]
[1770971034325,0.50236365,1942.5,1942.1,0.56838564]
[1770971034726,1.45644502,1942.8,1942.2,0.56838564]
[1770971034727,0.50236365,1942.7,1942.2,0.56838564]
[1770971035228,0.48691139,1942.9,1942.2,0.57488975]
[1770971035418,16.66923549,1943.0,1942.2,0.57488975]
[1770971035419,0.48683141,1942.7,1942.2,0.57488975]
[1770971036428,0.48674098,1942.9,1942.2,0.57488975]
[1770971036925,0.48674098,1942.9,1942.3,0.56838564]
[1770971037527,0.48652817,1943.1,1942.5,0.56838564]
[1770971041324,0.00600028,1943.1,1942.5,0.56838564]
[1770971042020,0.48762263,1943.1,1942.5,0.56838564]
[1770971042220,0.48762263,1943.1,1942.2,0.60167111]
[1770971043427,0.48059808,1942.9,1942.2,0.00650411]
[1770971043832,0.48059808,1942.7,1942.2,0.00650411]
[1770971044732,0.48059808,1942.7,1942.2,0.60167111]
[1770971047129,3.81115728,1942.9,1942.2,0.60167111]
[1770971047334,4.86768503,1942.8,1942.2,0.60167111]
[1770971047536,0.47808283,1942.8,1942.2,0.60167111]
[1770971050229,0.47785546,1942.6,1942.2,0.60167111]
[1770971050731,0.47778895,1942.5,1941.6,0.595167]
[1770971050932,0.47778895,1942.4,1941.6,0.595167]
[1770971051733,0.47778895,1942.4,1941.6,0.59878928]
[1770971054026,0.47656306,1942.2,1941.6,0.00362228]
[1770971056136,0.47656306,1942.2,1941.6,0.59878928]
[1770971056932,0.47656306,1942.2,1941.6,0.00362228]
[1770971062239,0.47656306,1942.2,1941.2,0.595167]
[1770971062240,0.48034967,1942.0,1941.2,0.595167]
[1770971063237,0.48034967,1942.0,1941.2,0.60011898]
[1770971063950,0.47861751,1941.9,1941.2,0.60011898]
[1770971076445,0.47758246,1941.7,1941.2,0.00495198]
[1770971076640,0.47758246,1941.5,1941.0,0.57871492]
[1770971077650,0.47758246,1941.5,1941.0,0.58521419]
[1770971079852,3.07852287,1941.7,1941.0,0.58521419]
[1770971080246,0.00544999,1941.7,1941.0,0.58521419]
[1770971080846,0.00544999,1941.7,1941.2,0.57871492]
[1770971084444,0.45453436,1941.7,1941.2,0.57871492]
[1770971088857,0.00544999,1941.7,1941.2,0.57871492]
[1770971089762,0.00544999,1941.7,1941.2,2.03519497]
[1770971090064,0.00544999,1941.7,1941.3,0.57871492]
[1770971091855,3.07307288,1942.1,1941.5,0.57871492]
[1770971092057,7.98462531,1942.1,1941.7,0.57871492]
[1770971092353,6.14329218,1942.3,1941.7,0.57871492]
[1770971092354,3.07307288,1942.3,1941.7,0.57871492]
[1770971092559,8.40759537,1942.3,1941.9,0.57871492]
[1770971092751,4.89392751,1942.2,1941.9,0.57871492]
[1770971092961,0.00667294,1942.3,1941.9,0.57871492]
[1770971094865,0.00667294,1942.3,1942.1,0.57871492]
[1770971095054,0.46871831,1942.5,1942.1,0.57871492]
[1770971095256,0.46871831,1942.5,1942.1,0.07871492]
[1770971095967,0.00587436,1942.5,1942.1,0.07871492]
[1770971096167,15.089,1942.7,1942.3,0.57871492]
[1770971096368,15.66238687,1942.7,1942.3,0.57871492]
[1770971096963,0.57338687,1942.7,1942.3,0.57871492]
[1770971097167,0.57338687,1942.4,1941.8,0.57871492]
[1770971097463,2.02888889,1942.0,1941.5,0.57871492]
[1770971097667,0.57338687,1941.7,1941.1,0.57871492]
[1770971097870,0.57338687,1941.7,1941.0,0.00649927]
[1770971097871,0.57338687,1941.6,1941.0,0.00649927]
[1770971098175,0.57338687,1941.6,1941.0,0.58521419]
[1770971098563,0.57338687,1941.6,1941.2,0.57871492]
[1770971098867,0.57338687,1941.5,1941.0,0.00649927]
[1770971099069,0.57338687,1941.5,1941.0,0.58521419]
[1770971100264,0.57338687,1941.8,1941.0,0.58521419]
[1770971100466,3.66203245,1941.9,1941.2,0.55543738]
[1770971100662,6.14329218,1942.1,1941.2,0.55543738]
[1770971100663,3.66203245,1942.1,1941.2,0.55543738]
[1770971100961,15.558,1942.4,1941.5,0.55543738]
[1770971100962,0.58895957,1942.4,1941.5,0.55543738]
[1770971101669,3.66720223,1942.7,1941.8,0.55543738]
[1770971101864,0.59412935,1942.7,1941.8,0.55543738]
[1770971105472,0.00516978,1942.7,1942.1,0.55543738]
[1770971107268,0.59412935,1942.7,1942.1,0.55543738]
[1770971108361,0.00516978,1942.7,1942.1,0.55543738]
[1770971112271,13.46256288,1943.3,1941.9,0.25767]
[1770971112272,0.58895957,1943.2,1942.3,0.55543738]
[1770971112678,0.58895957,1943.1,1942.2,0.55543738]
[1770971113277,0.59408606,1943.1,1942.2,0.55543738]
[1770971118274,0.59408606,1943.1,1942.0,2.29502536]
[1770971118275,0.59408606,1943.1,1942.4,0.55543738]
[1770971118473,0.59408606,1943.1,1942.4,0.56110256]
[1770971118883,0.00512649,1943.1,1942.4,0.56110256]
[1770971119482,0.00512649,1943.1,1942.4,5.74110256]
[1770971119675,0.00512649,1943.1,1942.5,0.55543738]
[1770971120882,0.59408606,1943.1,1942.5,0.55543738]
[1770971121283,0.00512649,1943.1,1942.5,0.55543738]
[1770971124187,28.51911213,1943.8,1943.1,6.33483]
[1770971124483,0.59779097,1944.2,1943.3,2.29502536]
[1770971124683,0.59779097,1944.0,1943.4,5.204]
[1770971124883,0.59779097,1944.5,1943.4,5.204]
[1770971125188,0.59779097,1944.2,1943.7,0.00099553]
[1770971125380,0.59779097,1944.2,1943.8,1.24568303]
[1770971125586,0.59779097,1944.2,1943.9,0.69024565]
[1770971125788,0.59779097,1944.2,1944.0,0.69024565]
[1770971125981,0.59779097,1944.2,1943.8,0.55948584]
[1770971126179,0.59779097,1944.2,1943.9,0.68968773]
[1770971126380,0.59779097,1944.2,1943.8,0.55948584]
[1770971126782,0.92656065,1944.1,1943.8,0.55948584]
[1770971127286,0.92656065,1944.0,1943.8,0.55948584]
[1770971127479,5.71855775,1944.1,1943.8,0.55948584]
[1770971127682,0.6718249,1944.1,1943.8,0.55948584]
[1770971128382,0.92656065,1944.0,1943.8,0.55948584]
[1770971128587,0.92656065,1944.0,1943.8,0.00404846]
[1770971128786,0.67238436,1943.8,1943.4,3.0469453]
[1770971128987,0.67238436,1943.8,1943.4,0.55543738]
[1770971129192,0.67026551,1944.2,1943.4,0.55543738]
[1770971129386,0.67026551,1944.2,1943.6,0.55543738]
[1770971129685,0.67026551,1944.2,1943.6,0.55959906]
[1770971129880,0.92656065,1944.1,1943.6,0.55959906]
[1770971130187,2.70453991,1944.1,1943.8,0.55543738]
[1770971130377,0.64933275,1944.1,1943.8,0.55543738]
[1770971130581,0.13387275,1944.1,1943.8,0.55543738]
[1770971130786,1.39523498,1944.5,1943.9,0.2574]
[1770971131086,0.00249236,1944.5,1944.2,0.00123947]
[1770971131286,1.39150316,1944.8,1944.2,0.00123947]
[1770971131590,0.38503781,1944.7,1944.2,0.00123947]
[1770971131984,0.25116506,1944.7,1944.2,0.00123947]
[1770971132186,0.38909044,1944.7,1944.2,0.00123947]
[1770971132382,1.37805226,1945.0,1944.4,0.13875075]
[1770971132690,0.06165195,1944.8,1944.4,0.13875075]
[1770971133190,1.44865018,1945.5,1944.6,2.29502536]
[1770971133379,1.45365704,1945.5,1944.5,0.25732]
[1770971133588,1.44865018,1945.4,1944.5,0.25732]
[1770971133785,1.44865018,1945.4,1944.5,41.05732]
[1770971133988,0.00500686,1945.5,1944.9,0.25727]
[1770971134392,0.93156751,1945.5,1944.9,0.25727]
[1770971135188,0.00500686,1945.5,1944.9,0.25727]
[1770971135386,0.00500686,1945.5,1944.7,5.512]
[1770971135387,1.44660302,1945.4,1944.7,5.512]
[1770971135788,1.44660302,1945.4,1944.6,5.576]
[1770971135988,1.44660302,1945.2,1944.6,5.576]
[1770971136388,2.37316367,1945.2,1944.6,5.576]
[1770971136792,1.44660302,1945.2,1944.6,5.576]
[1770971137087,0.00500686,1945.5,1944.7,2.55232536]
[1770971137292,1.43766513,1945.5,1944.7,2.55232536]
[1770971137594,2.36422578,1945.5,1944.7,2.55232536]
[1770971137792,1.43265827,1945.4,1944.7,2.55232536]
[1770971137996,1.43265827,1945.4,1944.9,0.25727]
[1770971138197,0.00500686,1945.5,1945.0,0.67664387]
[1770971138385,1.43280978,1945.7,1945.1,2.97166923]
[1770971138691,0.92656065,1945.6,1945.2,0.67664387]
[1770971138892,10.95319,1947.3,1945.1,2.29502536]
[1770971138893,1.43280978,1946.4,1945.7,0.25716]
[1770971139093,1.43280978,1946.4,1945.8,0.67664387]
[1770971139292,1.43280978,1946.4,1945.7,0.25716]
[1770971139597,1.43709741,1946.4,1945.8,0.67504309]
[1770971139798,1.43709741,1946.4,1945.7,0.25716]
[1770971140098,1.43709741,1946.4,1945.8,0.67482345]
[1770971140297,1.43709741,1946.4,1945.3,5.71549723]
[1770971140493,1.43709741,1946.4,1945.4,0.68086638]
[1770971140797,1.43709741,1946.4,1945.5,0.67436915]
[1770971140997,1.43709741,1946.4,1945.6,0.67436915]
[1770971141298,1.43709741,1946.4,1945.3,0.00649723]
[1770971141494,1.43709741,1946.4,1945.5,0.25719]
[1770971141685,1.43709741,1946.4,1945.6,0.67416728]
[1770971141885,1.43709741,1946.4,1945.5,2.55221536]
[1770971142085,1.43709741,1946.4,1945.6,0.67412665]
[1770971142289,1.43709741,1946.4,1945.8,2.29502536]
[1770971142693,1.47348316,1946.7,1945.9,0.25714]
[1770971142892,1.47348316,1946.7,1946.2,0.2571]
[1770971143797,1.47710049,1946.7,1946.2,0.2571]
[1770971143990,1.4783041,1947.2,1946.2,0.2571]
[1770971144193,1.4783041,1948.3,1947.0,2.29502536]
[1770971144404,1.4783041,1948.3,1947.1,0.92787055]
[1770971144701,1.4783041,1948.3,1947.2,0.67081384]
[1770971144994,1.4783041,1948.3,1947.2,0.07547443]
[1770971145201,3.77773928,1948.3,1947.2,0.00558084]
[1770971145400,1.43078585,1948.2,1947.2,0.00558084]
[1770971145601,1.43078585,1948.2,1947.2,0.0801183]
[1770971146295,1.43078585,1948.2,1947.2,0.00558084]
[1770971148403,1.43078585,1948.2,1947.3,0.31259948]